bitfinex-derivatives/quotes_BNBF0:USTF0_20250211
["timestamp","ask_amount","ask_price","bid_price","bid_amount"]
[1739268107484,0.31227067,640.47,638.96,0.28728273]
[1739268107685,0.31227067,640.47,638.88,0.28728273]
[1739268107887,0.31227067,640.47,638.89,0.28728273]
[1739268108086,0.31227067,640.47,638.9,0.28728273]
[1739268108384,0.31227067,640.47,638.91,0.28728273]
[1739268108685,0.31227067,640.47,638.92,0.28728273]
[1739268108885,0.31227067,640.47,638.88,0.28728273]
[1739268109080,0.31227067,640.47,638.89,0.28728273]
[1739268109278,0.31227067,640.47,638.88,0.28728273]
[1739268109484,0.31227067,640.47,638.89,0.28728273]
[1739268109789,0.31227067,640.47,638.9,0.2872759]
[1739268109978,0.31227067,640.47,638.85,0.2872759]
[1739268110186,0.31227067,640.47,638.86,0.2872759]
[1739268110482,0.31227067,640.47,638.87,0.2872759]
[1739268110784,0.31227067,640.47,638.88,0.2872759]
[1739268110985,0.31227067,640.47,638.85,0.2872759]
[1739268111181,0.31227067,640.47,638.86,0.2872759]
[1739268111385,0.31227067,640.47,638.87,0.2872759]
[1739268111585,0.31227067,640.47,638.85,0.2872759]
[1739268112085,0.31227067,640.47,638.86,0.2872759]
[1739268112286,0.31227067,640.47,638.79,0.2872759]
[1739268112487,0.31227067,640.47,638.8,0.2872759]
[1739268112687,0.31227067,640.47,638.81,0.2872759]
[1739268112886,0.31227067,640.47,638.82,0.2872759]
[1739268113187,0.31227067,640.47,638.78,1.1536296]
[1739268113394,0.31227067,640.47,638.79,0.28728407]
[1739268114089,0.31227067,640.47,638.79,1.44091367]
[1739268114287,0.31227067,640.47,638.8,0.28728407]
[1739268116190,0.31227067,640.47,638.8,1.44091367]
[1739268116487,1.6323914,640.46,638.81,0.28728407]
[1739268116690,0.3122853,640.44,638.81,0.28728407]
[1739268118991,0.3122853,640.44,638.84,1.1536296]
[1739268119291,0.3122853,640.44,638.85,0.28728407]
[1739268121084,0.3122853,640.44,638.85,0.93890005]
[1739268121585,0.3122853,640.44,638.84,1.1536296]
[1739268121785,0.3122853,640.44,638.85,0.93866665]
[1739268122496,0.3122853,640.44,638.86,1.1536296]
[1739268122685,0.3122853,640.44,638.87,0.93866665]
[1739268123490,0.3122853,640.44,638.88,0.60014541]
[1739268123697,0.3122853,640.44,638.89,1.25170958]
[1739268123892,0.3122853,640.44,638.9,1.25170468]
[1739268124192,0.3122853,640.44,638.91,1.25169978]
[1739268124393,0.3122853,640.44,639.14,1.1536296]
[1739268124695,0.3122853,640.44,639.15,0.93860303]
[1739268125291,0.3122853,640.44,639.15,0.28709758]
[1739268125493,0.3122853,640.44,639.15,0.9385829]
[1739268126991,0.3122853,640.44,639.14,1.1536296]
[1739268127197,0.3122853,640.44,639.15,0.93854331]
[1739268127596,0.3122853,640.44,639.15,0.28705713]
[1739268128587,0.3122853,640.44,639.23,1.1536296]
[1739268128793,0.3122853,640.44,639.24,0.28705713]
[1739268130598,0.3122853,640.44,639.23,1.1536296]
[1739268130794,0.3122853,640.44,639.24,0.28707039]
[1739268131789,0.3122853,640.44,639.25,0.28707039]
[1739268131993,0.3122853,640.44,639.1,0.28707039]
[1739268132595,0.3122853,640.44,639.11,0.28711094]
[1739268132794,0.3122853,640.44,639.1,0.28711094]
[1739268132992,0.3122853,640.44,639.11,0.28711094]
[1739268133303,0.3122853,640.44,639.12,0.28711094]
[1739268133591,0.3122853,640.44,639.13,0.28711094]
[1739268133793,0.3122853,640.44,639.04,0.28711094]
[1739268133991,0.3122853,640.44,639.05,0.28711094]
[1739268134194,0.3122853,640.44,639.04,0.28711094]
[1739268134496,0.3122853,640.44,639.05,0.28709692]
[1739268134891,0.3122853,640.44,639.06,0.28709692]
[1739268135097,0.3122853,640.44,639.04,0.28709692]
[1739268135298,0.3122853,640.44,639.05,0.28709692]
[1739268135499,0.3122853,640.44,639.04,0.28709692]
[1739268135701,0.3122853,640.44,639.05,0.28709692]
[1739268135899,0.3122853,640.44,638.92,0.93871524]
[1739268136094,0.3122853,640.44,638.93,0.93874211]
[1739268136298,0.3122853,640.44,638.92,0.93874211]
[1739268136503,0.3122853,640.44,638.93,0.2871225]
[1739268136717,0.3122853,640.44,638.92,0.2871225]
[1739268139895,0.3122853,640.44,638.93,0.28723578]
[1739268140099,0.3122853,640.44,638.94,0.28723578]
[1739268140300,0.3122853,640.44,638.74,0.28723578]
[1739268140494,0.3122853,640.44,638.75,0.28723578]
[1739268140695,0.3122853,640.44,638.76,0.28723578]
[1739268141000,0.3122853,640.44,638.77,0.28723578]
[1739268141200,0.3122853,640.44,638.74,0.28723578]
[1739268141394,0.3122853,640.44,638.75,0.28723578]
[1739268141597,0.3122853,640.44,638.76,0.28724062]
[1739268141915,0.3122853,640.44,638.77,0.28724062]
[1739268142098,0.3122853,640.44,638.74,0.28724062]
[1739268142599,0.3122853,640.44,638.75,0.28724062]
[1739268142796,0.3122853,640.44,638.66,0.28724062]
[1739268145802,0.3122853,640.44,638.69,1.1536296]
[1739268146005,0.3122853,640.44,638.7,0.28724062]
[1739268147197,0.3122853,640.44,638.71,0.28729739]
[1739268147401,0.3122853,640.44,638.7,0.28729739]
[1739268147602,0.3122853,640.44,638.71,0.28729739]
[1739268147796,0.3122853,640.44,638.7,0.93927179]
[1739268149005,0.3122853,640.44,638.71,0.28729648]
[1739268149304,0.3122853,640.44,638.72,0.28729648]
[1739268149506,0.3122853,640.44,638.58,0.28729648]
[1739268149706,0.3122853,640.44,638.57,0.6519703]
[1739268149707,0.3122853,640.44,638.59,0.28729648]
[1739268150008,0.3122853,640.44,638.6,0.28729648]
[1739268150310,0.3122853,640.44,638.61,0.28729648]
[1739268150500,0.3122853,640.44,638.56,1.1536296]
[1739268150706,0.3122853,640.44,638.57,0.93919649]
[1739268150900,0.3122853,640.44,638.58,0.28727174]
[1739268151103,0.3122853,640.44,638.68,1.1536296]
[1739268151304,0.3122853,640.44,638.69,0.93919649]
[1739268151600,0.3122853,640.44,638.7,0.28727174]
[1739268151802,0.3122853,640.44,638.69,0.93919649]
[1739268154510,0.3122853,640.44,638.73,1.1536296]
[1739268154711,0.3122853,640.44,638.74,0.28727174]
[1739268156209,0.3122853,640.44,638.75,0.28741363]
[1739268156408,0.3122853,640.44,638.76,0.28741363]
[1739268156710,0.3122853,640.44,638.77,0.28741363]
[1739268157013,0.3122853,640.44,638.78,0.28741363]
[1739268157209,0.3122853,640.44,638.44,0.93963752]
[1739268157412,0.3122853,640.44,638.43,1.1536296]
[1739268157610,0.3122853,640.44,638.44,0.28738666]
[1739268158813,0.3122853,640.44,638.45,0.28738666]
[1739268159014,0.3122853,640.44,638.46,0.28738666]
[1739268159226,0.3122853,640.44,638.47,0.28738666]
[1739268159415,0.3122853,640.44,638.48,0.28738666]
[1739268159616,0.3122853,640.44,638.49,0.28738666]
[1739268159813,0.3122853,640.44,638.5,0.28738666]
[1739268160015,0.3122853,640.44,638.51,0.28738666]
[1739268160211,0.3122853,640.44,638.52,0.28738666]
[1739268160416,0.3122853,640.44,638.53,0.28738666]
[1739268160617,0.3122853,640.44,638.54,0.28738666]
[1739268160918,0.3122853,640.44,638.55,0.28738666]
[1739268161216,0.3122853,640.44,638.56,0.28738666]
[1739268161417,0.3122853,640.44,638.57,0.28738666]
[1739268161715,0.3122853,640.44,638.58,0.28738666]
[1739268161920,0.3122853,640.44,638.59,0.28738666]
[1739268162116,0.3122853,640.44,638.6,0.28738666]
[1739268162318,0.3122853,640.44,638.61,0.28738666]
[1739268162519,0.3122853,640.44,638.62,0.28738666]
[1739268162722,0.3122853,640.44,638.56,0.28738666]
[1739268162923,0.3122853,640.44,638.57,0.28738666]
[1739268163111,0.3122853,640.44,638.55,0.28738666]
[1739268164913,0.3122853,640.44,638.56,0.28738666]
[1739268165319,0.3122853,640.44,638.57,0.28738666]
[1739268165620,0.3122853,640.44,638.58,0.28738666]
[1739268165819,0.3122853,640.44,638.59,0.28738666]
[1739268166018,0.3122853,640.44,638.51,0.28738666]
[1739268166321,0.3122853,640.44,638.52,0.28738666]
[1739268166520,0.3122853,640.44,638.53,0.28738666]
[1739268166712,0.3122853,640.44,638.51,0.28738666]
[1739268167120,0.3122853,640.44,638.52,1.1536296]
[1739268167331,0.3122853,640.44,638.53,0.93933125]
[1739268167724,0.3122853,640.44,638.54,0.28738666]
[1739268168021,0.3122853,640.44,638.55,0.28738666]
[1739268168320,0.3122853,640.44,638.56,0.28738666]
[1739268168515,0.3122853,640.44,638.57,0.28738666]
[1739268168723,0.3122853,640.44,638.58,0.28738666]
[1739268169023,0.3122853,640.44,638.59,0.28728496]
[1739268169219,0.3122853,640.44,638.6,0.28728496]
[1739268169421,0.3122853,640.44,638.74,1.1536296]
[1739268169619,0.3122853,640.44,638.75,0.93923639]
[1739268169920,0.3122853,640.44,638.75,0.28728496]
[1739268170126,0.3122853,640.44,638.76,0.28728496]
[1739268170426,0.3122853,640.44,638.77,0.28728496]
[1739268170629,0.3122853,640.44,638.75,0.28728496]
[1739268170823,0.3122853,640.44,638.76,0.28728496]
[1739268171121,0.3122853,640.44,638.77,0.28728496]
[1739268171315,0.3122853,640.44,638.75,0.28728496]
[1739268172216,0.3122853,640.44,638.74,1.1536296]
[1739268172521,0.3122853,640.44,638.88,1.1536296]
[1739268172725,0.3122853,640.44,638.89,0.28733829]
[1739268172915,0.3122853,640.44,638.88,1.1536296]
[1739268173116,0.3122853,640.44,638.89,0.28734138]
[1739268174124,0.3122853,640.44,638.88,1.1536296]
[1739268174322,0.3122853,640.44,638.89,0.28732106]
[1739268175723,0.3122853,640.44,638.83,0.93927259]
[1739268175915,0.3122853,640.44,638.9,0.28732106]
[1739268176116,0.3122853,640.44,638.91,0.28732106]
[1739268176317,0.3122853,640.44,638.83,0.93927259]
[1739268176528,0.3122853,640.44,638.84,0.28732106]
[1739268176723,0.3122853,640.44,638.83,0.93927259]
[1739268177717,0.3122853,640.44,638.82,1.1536296]
[1739268178023,0.3122853,640.44,639.01,1.1536296]
[1739268178221,0.3122853,640.44,639.02,0.28728325]
[1739268179422,0.3122853,640.44,639.01,1.1536296]
[1739268179623,0.3122853,640.44,639.02,0.28728077]
[1739268180027,0.3122853,640.44,638.99,0.28728077]
[1739268180224,0.3122853,640.44,639.0,0.28728077]
[1739268180427,0.3122853,640.44,638.99,0.28728077]
[1739268180619,0.3122853,640.44,639.0,0.28728077]
[1739268180824,0.3122853,640.44,638.99,0.28728077]
[1739268181123,0.3122853,640.44,638.98,1.1536296]
[1739268181124,0.3122853,640.44,639.0,0.28728077]
[1739268181317,0.3122853,640.44,638.99,0.28728077]
[1739268181520,0.3122853,640.44,639.0,0.28728077]
[1739268181723,0.3122853,640.44,639.01,0.28728077]
[1739268181932,0.3122853,640.44,639.02,0.28728077]
[1739268182128,0.3122853,640.44,638.98,1.1536296]
[1739268182129,0.3122853,640.44,639.07,1.1536296]
[1739268182529,0.3122853,640.44,639.08,0.28728077]
[1739268185326,0.3122853,640.44,639.09,1.1536296]
[1739268186027,0.3122853,640.44,639.1,0.28723508]
[1739268187833,0.3122853,640.44,639.11,0.28722469]
[1739268188028,0.3122853,640.44,638.64,1.38435552]
[1739268188029,0.3122853,640.44,639.1,0.28722469]
[1739268188226,0.3122853,640.44,639.11,0.28722469]
[1739268188430,0.3122853,640.44,638.9,0.28722469]
[1739268189827,0.3122853,640.44,638.91,0.28724291]
[1739268190029,0.3122853,640.44,638.9,0.28724291]
[1739268190226,0.3122853,640.44,638.91,0.28724291]
[1739268190532,0.3122853,640.44,638.92,0.28724291]
[1739268190733,0.3122853,640.44,638.9,0.28724291]
[1739268191047,0.3122853,640.44,638.83,1.1536296]
[1739268191048,0.3122853,640.44,638.91,0.28724291]
[1739268191231,0.3122853,640.44,638.92,0.28724291]
[1739268191430,0.3122853,640.44,638.93,0.28724291]
[1739268191733,0.3122853,640.44,638.94,0.28724291]
[1739268191928,0.3122853,640.44,638.95,0.28724291]
[1739268192232,0.3122853,640.44,638.96,0.28724291]
[1739268192431,0.3122853,640.44,638.84,0.28724291]
[1739268192627,0.3122853,640.44,638.85,0.28724291]
[1739268192832,0.3122853,640.44,638.86,0.28724291]
[1739268193034,0.3122853,640.44,638.84,0.28724291]
[1739268193236,0.3122853,640.44,638.85,0.28717043]
[1739268193432,0.3122853,640.44,638.46,1.1536296]
[1739268193433,0.3122853,640.44,638.84,1.44080003]
[1739268193635,0.3122853,640.44,638.85,0.28717043]
[1739268194335,0.3122853,640.44,638.85,0.9387752]
[1739268194934,0.3122853,640.44,638.86,0.28717043]
[1739268195133,0.3122853,640.44,638.87,0.28717043]
[1739268195435,0.3122853,640.44,638.88,0.28717043]
[1739268195741,0.3122853,640.44,638.89,0.28717043]
[1739268195930,0.3122853,640.44,639.05,1.1536296]
[1739268196133,0.3122853,640.44,639.06,0.28717043]
[1739268196334,0.3122853,640.44,639.06,0.93876716]
[1739268198136,0.3122853,640.44,639.14,1.1536296]
[1739268198338,0.3122853,640.44,639.15,0.28717043]
[1739268198637,0.3122853,640.44,639.14,1.1536296]
[1739268198838,0.3122853,640.44,639.15,0.28710229]
[1739268200737,0.3122853,640.44,639.09,0.28710229]
[1739268200937,0.3122853,640.44,639.1,0.28710229]
[1739268201137,0.3122853,640.44,639.11,0.28710229]
[1739268201330,0.3122853,640.44,639.09,0.28710229]
[1739268201637,0.3122853,640.44,639.1,0.28710229]
[1739268201848,0.3122853,640.44,639.11,0.28710229]
[1739268202038,0.3122853,640.44,639.12,0.28712635]
[1739268202239,0.3122853,640.44,639.09,0.28712635]
[1739268202438,0.3122853,640.44,639.1,0.28712635]
[1739268202735,0.3122853,640.44,639.11,0.28712635]
[1739268202942,0.3122853,640.44,638.83,0.93874743]
[1739268203245,0.3122853,640.44,638.84,0.28712635]
[1739268203442,0.3122853,640.44,638.83,0.93874743]
[1739268203643,0.3122853,640.44,638.84,0.28712635]
[1739268203942,0.3122853,640.44,638.85,0.28712635]
[1739268204148,0.3122853,640.44,638.86,0.28712635]
[1739268204336,0.3122853,640.44,638.84,0.28712635]
[1739268204545,0.3122853,640.44,638.85,0.28712635]
[1739268204738,0.3122853,640.44,638.86,0.28712635]
[1739268204942,0.3122853,640.44,638.83,0.65162108]
[1739268204943,0.3122853,640.44,638.94,1.1536296]
[1739268205158,0.3122853,640.44,638.95,0.28712635]
[1739268205943,0.3122853,640.44,638.95,0.93862723]
[1739268206146,0.3122853,640.44,638.96,0.28712635]
[1739268206445,0.3122853,640.44,638.97,0.28712635]
[1739268206672,0.3122853,640.44,638.98,0.28712635]
[1739268206838,0.3122853,640.44,638.95,0.65150088]
[1739268206839,0.3122853,640.44,638.99,0.28712635]
[1739268207044,0.3122853,640.44,639.0,0.28712635]
[1739268207245,0.3122853,640.44,639.08,1.1536296]
[1739268207445,0.3122853,640.44,639.09,0.28701069]
[1739268207845,0.3122853,640.44,639.09,0.93837432]
[1739268208040,0.3122853,640.44,639.1,0.28701069]
[1739268208242,0.3122853,640.44,639.11,0.28701069]
[1739268208447,0.3122853,640.44,639.1,0.28701069]
[1739268208655,0.3122853,640.44,639.11,0.28701069]
[1739268208844,0.3122853,640.44,639.09,0.65136363]
[1739268208845,0.3122853,640.44,639.12,0.28701069]
[1739268209045,0.3122853,640.44,639.08,1.1536296]
[1739268209245,0.3122853,640.44,639.09,0.93839441]
[1739268209748,0.3122853,640.44,639.29,1.1536296]
[1739268209942,0.3122853,640.44,639.3,0.28700808]
[1739268211045,0.3122853,640.44,639.31,0.28701724]
[1739268211344,0.3122853,640.44,639.32,0.28701724]
[1739268211745,0.3122853,640.44,639.33,0.28701724]
[1739268211944,0.3122853,640.44,639.34,0.28701724]
[1739268212149,0.3122853,640.44,639.35,0.28701724]
[1739268212452,0.3122853,640.44,639.36,0.28701724]
[1739268212644,0.3122853,640.44,639.37,0.28701724]
[1739268212841,0.3122853,640.44,639.38,0.28700375]
[1739268213145,0.3122853,640.44,639.39,0.28700375]
[1739268213342,0.3122853,640.44,639.4,0.28700375]
[1739268213547,0.3122853,640.44,639.41,0.28700375]
[1739268213850,0.3122853,640.44,639.42,0.28700375]
[1739268214047,0.3122853,640.44,639.43,0.28700375]
[1739268214250,0.3122853,640.44,639.44,0.28700375]
[1739268214445,0.3122853,640.44,639.25,1.1536296]
[1739268214640,0.3122853,640.44,639.26,0.28696549]
[1739268215044,0.3122853,640.44,639.28,1.1536296]
[1739268215346,0.3122853,640.44,639.29,0.28696549]
[1739268215941,0.3122853,640.44,639.29,0.93822256]
[1739268216750,0.3122853,640.44,639.3,0.28696549]
[1739268216951,0.3122853,640.44,639.31,0.28696549]
[1739268217144,0.3122853,640.44,639.32,0.28696549]
[1739268217348,0.3122853,640.44,639.33,0.28696549]
[1739268217547,0.3122853,640.44,639.34,0.28696549]
[1739268217749,0.3122853,640.44,639.29,0.65125707]
[1739268217750,0.3122853,640.44,639.4,1.1536296]
[1739268217948,0.3122853,640.44,639.41,0.93822256]
[1739268219950,0.3122853,640.44,639.46,1.1536296]
[1739268220154,0.3122853,640.44,639.47,0.28696549]
[1739268222653,0.3122853,640.44,639.39,0.93817708]
[1739268222954,0.3122853,640.44,639.4,0.59975873]
[1739268223349,1.35507753,642.13,639.41,0.28696549]
[1739268223553,0.31152647,642.0,639.42,0.31278346]
[1739268223753,0.31152647,642.0,639.43,0.93795724]
[1739268224254,0.31152647,642.0,639.44,0.28696549]
[1739268224454,0.31152647,642.0,639.45,0.28696549]
[1739268224653,0.31152647,642.0,639.46,0.28696549]
[1739268224953,0.31152647,642.0,639.47,0.28696549]
[1739268225155,0.31152647,642.0,639.48,0.5997196]
[1739268225353,0.31152647,642.0,639.49,1.25070646]
[1739268225555,0.31152647,642.0,639.5,1.25070157]
[1739268225754,0.31152647,642.0,639.75,1.1536296]
[1739268225948,0.31152647,642.0,639.76,0.93795724]
[1739268226653,0.31152647,642.0,639.76,0.28696549]
[1739268227851,1.62925162,641.99,639.76,0.28696549]
[1739268228048,0.31158471,641.88,639.76,0.28696549]
[1739268228449,0.31158471,641.88,639.77,1.1536296]
[1739268228851,0.31158471,641.88,639.78,0.2868021]
[1739268230355,0.31158471,641.88,639.77,1.1536296]
[1739268230650,0.31158471,641.88,639.78,0.28681093]
[1739268233456,0.31158471,641.88,639.59,0.93778551]
[1739268233652,0.31158471,641.88,639.6,0.28681093]
[1739268233859,0.31158471,641.88,639.61,0.28681093]
[1739268234058,0.31158471,641.88,639.58,1.1536296]
[1739268234356,0.31158471,641.88,639.59,0.93778802]
[1739268234551,0.31158471,641.88,639.6,0.28680875]
[1739268234751,0.31158471,641.88,639.61,0.28680875]
[1739268234957,0.31158471,641.88,639.62,0.28680875]
[1739268235158,0.31158471,641.88,639.63,0.28680875]
[1739268235359,0.31158471,641.88,639.64,0.28680875]
[1739268235559,0.31158471,641.88,639.6,0.93778802]
[1739268235761,0.31158471,641.88,639.61,0.65098696]
[1739268236056,0.31158471,641.88,639.62,0.9377996]
[1739268236255,0.31158471,641.88,639.6,0.9377996]
[1739268236453,0.31158471,641.88,639.61,0.28681264]
[1739268236653,0.31158471,641.88,639.6,0.93778996]
[1739268236850,0.31158471,641.88,639.61,0.28681264]
[1739268237054,0.31158471,641.88,639.6,0.93778996]
[1739268237253,0.31158471,641.88,639.61,0.28681264]
[1739268237451,0.31158471,641.88,639.59,1.1536296]
[1739268237750,0.31158471,641.88,639.6,0.28681315]
[1739268237950,0.31158471,641.88,639.61,0.28681315]
[1739268238158,1.62998294,641.87,639.58,0.28681315]
[1739268238355,0.31164298,641.76,639.59,0.28681315]
[1739268238558,0.31164298,641.76,639.58,0.28681315]
[1739268238854,0.31164298,641.76,639.59,0.28681315]
[1739268239055,0.31164298,641.76,639.58,0.28681315]
[1739268239261,0.31164298,641.76,639.59,0.28681315]
[1739268239454,0.31164298,641.76,639.58,0.28681315]
[1739268240960,0.31164298,641.76,639.57,1.1536296]
[1739268240961,0.31164298,641.76,639.59,0.28688236]
[1739268241262,0.31164298,641.76,639.6,0.28688236]
[1739268241453,0.31164298,641.76,639.61,0.28688236]
[1739268241755,0.31164298,641.76,639.62,0.28688236]
[1739268241957,0.31164298,641.76,639.53,0.28688236]
[1739268242153,0.31164298,641.76,639.54,0.28688236]
[1739268242361,0.31164298,641.76,639.51,0.28688236]
[1739268242565,0.31164298,641.76,639.52,0.28688236]
[1739268242864,0.31164298,641.76,639.53,0.28688236]
[1739268243061,0.31164298,641.76,639.46,0.93804867]
[1739268243261,0.31164298,641.76,639.47,0.28688236]
[1739268243464,0.31164298,641.76,639.46,0.93804867]
[1739268243656,0.31164298,641.76,639.47,0.28688236]
[1739268243864,0.31164298,641.76,639.48,0.28688236]
[1739268244065,0.31164298,641.76,639.47,0.28688236]
[1739268244260,0.31164298,641.76,639.57,1.1536296]
[1739268244460,0.31164298,641.76,639.58,0.28688236]
[1739268246559,0.31164298,641.76,639.63,1.1536296]
[1739268246764,0.31164298,641.76,639.64,0.28688236]
[1739268248359,1.63030111,641.75,639.64,0.28688236]
[1739268248561,0.3116964,641.65,639.64,0.28688236]
[1739268249467,0.3116964,641.65,639.65,0.28696373]
[1739268249662,0.3116964,641.65,639.64,0.28696373]
[1739268249867,1.35507753,641.64,639.43,1.1536296]
[1739268250362,0.31175471,641.53,639.43,1.1536296]
[1739268250857,0.31175471,641.53,639.44,0.28705815]
[1739268252463,0.31175471,641.53,639.45,0.28705815]
[1739268252665,0.31175471,641.53,639.25,0.28705815]
[1739268252857,0.31175471,641.53,639.26,0.28705815]
[1739268253057,0.31175471,641.53,639.25,0.28705815]
[1739268253256,0.31175471,641.53,639.26,0.28705815]
[1739268253461,0.31175471,641.53,639.27,0.28705815]
[1739268253761,0.31175471,641.53,639.28,0.28705815]
[1739268253958,0.31175471,641.53,639.29,0.28705815]
[1739268254160,0.31175471,641.53,639.3,0.28705815]
[1739268254360,0.31175471,641.53,639.31,0.28705815]
[1739268254557,0.31175471,641.53,639.32,0.28705815]
[1739268254760,0.31175471,641.53,639.33,0.28701535]
[1739268254963,0.31175471,641.53,639.27,0.28701535]
[1739268255159,0.31175471,641.53,639.26,0.28701535]
[1739268255462,0.31175471,641.53,639.27,0.28701535]
[1739268255661,0.31175471,641.53,639.28,0.28701535]
[1739268255861,0.31175471,641.53,639.08,0.28701535]
[1739268256163,0.31175471,641.53,639.09,0.28701535]
[1739268256463,0.31175471,641.53,639.1,0.28701535]
[1739268256659,0.31175471,641.53,639.11,0.28701535]
[1739268256859,0.31175471,641.53,639.12,0.28701535]
[1739268257060,0.31175471,641.53,639.13,0.28701535]
[1739268257261,0.31175471,641.53,639.15,1.1536296]
[1739268257468,0.31175471,641.53,639.16,0.93841695]
[1739268257661,0.31175471,641.53,639.17,0.28701535]
[1739268257861,0.31175471,641.53,639.18,0.28701535]
[1739268258063,0.31175471,641.53,639.15,1.1536296]
[1739268258264,0.31175471,641.53,639.16,0.93837492]
[1739268258468,0.31175471,641.53,639.17,0.28700162]
[1739268258767,1.6308614,641.52,639.18,0.28700162]
[1739268258962,1.6308614,641.52,639.16,0.6513733]
[1739268258963,1.6308614,641.52,639.19,0.28700162]
[1739268259367,1.6308614,641.52,639.2,0.28700162]
[1739268259562,0.31181303,641.41,639.21,0.28700162]
[1739268259765,0.31181303,641.41,639.17,0.93837492]
[1739268259962,0.31181303,641.41,639.18,0.59990252]
[1739268260163,0.31181303,641.41,639.19,1.25127092]
[1739268260364,0.31181303,641.41,639.2,0.31289111]
[1739268260560,0.31181303,641.41,639.2,1.25126603]
[1739268260770,0.31181303,641.41,639.21,0.93837492]
[1739268260962,0.31181303,641.41,639.22,0.31288132]
[1739268261169,0.31181303,641.41,639.23,0.93837492]
[1739268261767,0.31181303,641.41,639.3,1.1536296]
[1739268261968,0.31181303,641.41,639.31,0.28700162]
[1739268262866,0.31181303,641.41,639.31,0.93818104]
[1739268263066,0.31181303,641.41,639.31,0.28700162]
[1739268263264,0.31181303,641.41,639.31,0.93823943]
[1739268264570,0.31181303,641.41,639.33,1.1536296]
[1739268264765,0.31181303,641.41,639.34,0.93823943]
[1739268265669,0.31181303,641.41,639.35,0.28700162]
[1739268265869,0.31181303,641.41,639.36,0.28700162]
[1739268266072,0.31181303,641.41,639.34,0.93823943]
[1739268266366,0.31181303,641.41,639.35,0.28700162]
[1739268266765,0.31181303,641.41,639.36,0.28700162]
[1739268266972,0.31181303,641.41,639.4,1.1536296]
[1739268267164,0.31181303,641.41,639.41,0.28692945]
[1739268268972,1.63046661,641.4,639.4,1.1536296]
[1739268269175,0.31182762,641.38,639.41,0.28690476]
[1739268270778,0.31182762,641.38,639.4,1.1536296]
[1739268270974,0.31182762,641.38,639.41,0.28690849]
[1739268271178,0.31182762,641.38,639.47,1.1536296]
[1739268271478,0.31182762,641.38,639.48,0.28690849]
[1739268272976,0.31182762,641.38,639.49,1.1536296]
[1739268273180,0.31182762,641.38,639.5,0.28690849]
[1739268274280,0.31182762,641.38,639.51,0.28691639]
[1739268274478,0.31182762,641.38,639.5,0.28691639]
[1739268274675,0.31182762,641.38,639.51,0.28691639]
[1739268274878,0.31182762,641.38,639.5,0.28691639]
[1739268275078,0.31182762,641.38,639.51,0.28691639]
[1739268275278,0.31182762,641.38,639.5,0.28691639]
[1739268275580,0.31182762,641.38,639.51,0.28691639]
[1739268275780,0.31182762,641.38,639.5,0.28691639]
[1739268276079,0.31182762,641.38,639.51,0.28690706]
[1739268276383,0.31182762,641.38,639.52,0.28690706]
[1739268276580,0.31182762,641.38,639.53,0.28690706]
[1739268276779,0.31182762,641.38,639.54,0.28690706]
[1739268276983,0.31182762,641.38,639.55,0.28690706]
[1739268277380,0.31182762,641.38,639.56,0.28690706]
[1739268277581,0.31182762,641.38,639.57,0.28690706]
[1739268277884,0.31182762,641.38,639.58,0.28690708]
[1739268278077,0.31182762,641.38,639.59,0.28690708]
[1739268278283,0.31182762,641.38,639.6,0.28690708]
[1739268278483,0.31182762,641.38,639.61,0.28690708]
[1739268278786,0.31182762,641.38,639.62,0.28690708]
[1739268278984,0.31182762,641.38,639.63,0.28690708]
[1739268279183,0.31182762,641.38,639.58,0.28690708]
[1739268279479,0.31182762,641.38,639.59,0.28693052]
[1739268279677,0.31182762,641.38,639.6,0.28693052]
[1739268279879,0.31182762,641.38,639.58,0.28693052]
[1739268280082,0.31182762,641.38,639.59,0.28693052]
[1739268280284,0.31182762,641.38,639.58,0.28693052]
[1739268280780,0.31182762,641.38,639.59,0.28693052]
[1739268280982,0.31182762,641.38,639.6,0.28693052]
[1739268281178,0.31182762,641.38,639.61,0.28693052]
[1739268281382,0.31182762,641.38,639.51,1.1536296]
[1739268281583,0.31182762,641.38,639.52,0.28695554]
[1739268283390,0.31182762,641.38,639.5,0.28695554]
[1739268283587,0.31182762,641.38,639.51,0.28695554]
[1739268283784,0.31182762,641.38,639.5,0.28695554]
[1739268283989,0.31182762,641.38,639.51,0.28695554]
[1739268284183,0.31182762,641.38,639.52,0.28695554]
[1739268284383,0.31182762,641.38,639.5,0.28695554]
[1739268284585,0.31182762,641.38,639.51,0.28695554]
[1739268284885,0.31182762,641.38,639.5,0.28695554]
[1739268284886,1.35507753,641.17,639.5,0.28695554]
[1739268285086,0.31193948,641.15,639.51,0.28704712]
[1739268285287,0.31193948,641.15,639.46,0.28704712]
[1739268285488,1.63103975,641.14,639.47,0.28704712]
[1739268285688,0.31195408,641.12,639.46,0.28704712]
[1739268285989,0.31195408,641.12,639.47,0.28704712]
[1739268286190,0.31195408,641.12,639.48,0.28704712]
[1739268286391,0.31195408,641.12,639.46,0.28704712]
[1739268286585,0.31195408,641.12,639.47,0.28704712]
[1739268286790,0.31195408,641.12,639.48,0.28706079]
[1739268286991,0.31195408,641.12,639.46,0.28706079]
[1739268287197,0.31195408,641.12,639.47,0.28706079]
[1739268287493,0.31195408,641.12,639.48,0.28706079]
[1739268287690,0.31195408,641.12,639.49,0.28706079]